bitfinex/quotes_BTCUSD_20250414
["timestamp","ask_amount","ask_price","bid_price","bid_amount"]
[1744655697408,0.005,84881.0,84879.0,0.235629]
[1744655697608,0.005,84881.0,84880.0,0.235626]
[1744655697925,0.003,84881.0,84880.0,0.235626]
[1744655698132,0.00045862,84885.0,84884.0,0.235615]
[1744655698903,0.00045862,84885.0,84884.0,0.35881239]
[1744655699143,0.00045862,84885.0,84884.0,0.35645654]
[1744655699706,0.00145862,84885.0,84884.0,0.35645654]
[1744655700257,0.00145862,84885.0,84884.0,0.35845654]
[1744655701059,0.00145862,84885.0,84884.0,0.237615]
[1744655701060,0.00045862,84885.0,84884.0,0.237615]
[1744655701387,0.00045862,84885.0,84884.0,0.238615]
[1744655701725,0.00045862,84885.0,84884.0,0.236615]
[1744655701928,0.00045862,84885.0,84884.0,0.238615]
[1744655702572,0.00045862,84885.0,84884.0,0.35945654]
[1744655703213,0.00045862,84885.0,84884.0,0.40695654]
[1744655705183,0.00045862,84885.0,84884.0,0.003]
[1744655705389,0.23607062,84885.0,84884.0,0.003]
[1744655705558,0.00045862,84885.0,84884.0,0.003]
[1744655705965,0.02247233,84885.0,84884.0,0.003]
[1744655706166,0.02247233,84885.0,84884.0,0.238615]
[1744655706983,0.00045862,84885.0,84884.0,0.238615]
[1744655707586,0.00045862,84885.0,84884.0,0.003]
[1744655707789,0.25808449,84885.0,84884.0,0.003]
[1744655708419,0.26909266,84885.0,84884.0,0.003]
[1744655708740,0.26909266,84885.0,84884.0,0.002]
[1744655708948,0.235641,84875.0,84873.0,0.011782]
[1744655709305,0.011782,84871.0,84866.0,0.235663]
[1744655709506,0.20748811,84883.0,84856.0,0.235692]
[1744655709507,0.235684,84860.0,84856.0,0.235692]
[1744655709710,0.235694,84856.0,84852.0,0.011785]
[1744655709914,0.235696,84855.0,84852.0,0.235704]
[1744655710144,0.235696,84855.0,84851.0,0.0008436]
[1744655710145,0.235704,84852.0,84851.0,0.0008436]
[1744655710650,0.02200893,84852.0,84851.0,0.0008436]
[1744655711069,0.0330136,84852.0,84851.0,0.0008436]
[1744655711273,0.03301402,84852.0,84851.0,0.0008436]
[1744655711524,0.08231402,84852.0,84851.0,0.0038436]
[1744655711940,0.08231402,84852.0,84851.0,0.0008436]
[1744655712499,0.08231402,84852.0,84851.0,0.0048436]
[1744655712677,0.08231402,84852.0,84851.0,0.0008436]
[1744655713103,0.25205556,84852.0,84851.0,0.0018436]
[1744655713307,0.25205556,84852.0,84851.0,0.0038436]
[1744655713811,0.25205556,84852.0,84851.0,0.0018436]
[1744655714372,0.59205556,84852.0,84851.0,0.0018436]
[1744655714576,0.61522426,84852.0,84851.0,0.0018436]
[1744655714833,0.61522426,84852.0,84851.0,0.0028436]
[1744655715034,0.61522426,84852.0,84851.0,0.0018436]
[1744655715206,0.61522426,84852.0,84851.0,0.0028436]
[1744655715614,0.61522426,84852.0,84851.0,0.0018436]
[1744655715783,0.61922426,84852.0,84851.0,0.0018436]
[1744655716181,0.61922426,84852.0,84851.0,0.0008436]
[1744655716380,0.60468341,84852.0,84851.0,0.0008436]
[1744655716829,0.60668341,84852.0,84851.0,0.0008436]
[1744655717202,0.60468341,84852.0,84851.0,0.0008436]
[1744655717525,0.60768341,84852.0,84851.0,0.0008436]
[1744655718128,0.62222426,84852.0,84851.0,0.0008436]
[1744655718868,0.60768341,84852.0,84851.0,0.0008436]
[1744655720513,0.84338741,84852.0,84851.0,0.0008436]
[1744655723695,0.79448741,84852.0,84851.0,0.0008436]
[1744655723916,0.45448741,84852.0,84851.0,0.0008436]
[1744655724280,0.30300867,84852.0,84851.0,0.0008436]
[1744655724479,0.292004,84852.0,84851.0,0.0008436]
[1744655726547,0.15008,84852.0,84851.0,0.0008436]
[1744655726704,0.385784,84852.0,84851.0,0.0008436]
[1744655727314,0.382784,84852.0,84851.0,0.0008436]
[1744655727515,0.384784,84852.0,84851.0,0.0008436]
[1744655728088,0.382784,84852.0,84851.0,0.0008436]
[1744655728342,0.385784,84852.0,84851.0,0.0008436]
[1744655728940,0.381784,84852.0,84851.0,0.0008436]
[1744655729128,0.384784,84852.0,84851.0,0.0008436]
[1744655729811,0.57701027,84852.0,84851.0,0.0008436]
[1744655730011,0.59889818,84852.0,84851.0,0.0008436]
[1744655731145,0.60855258,84852.0,84851.0,0.0008436]
[1744655732243,0.94855258,84852.0,84851.0,0.0008436]
[1744655732925,0.99445258,84852.0,84851.0,0.0008436]
[1744655733753,0.99145258,84852.0,84851.0,0.0008436]
[1744655733904,0.99445258,84852.0,84851.0,0.0008436]
[1744655734573,0.99145258,84852.0,84851.0,0.0008436]
[1744655734726,0.99545258,84852.0,84851.0,0.0008436]
[1744655734955,0.99245258,84852.0,84851.0,0.0008436]
[1744655735312,0.99745258,84852.0,84851.0,0.0008436]
[1744655737149,1.11818106,84852.0,84851.0,0.0008436]
[1744655738200,0.99745258,84852.0,84851.0,0.0008436]
[1744655738461,0.93701173,84852.0,84851.0,0.0008436]
[1744655740155,0.81617019,84852.0,84851.0,0.0008436]
[1744655740356,0.77027019,84852.0,84851.0,0.0008436]
[1744655740742,0.05148619,84852.0,84851.0,0.0008436]
[1744655741160,0.05148619,84852.0,84851.0,0.2365506]
[1744655741371,0.02959828,84852.0,84851.0,0.2365506]
[1744655741602,0.0186544,84852.0,84851.0,0.2365506]
[1744655741817,0.0186544,84852.0,84851.0,0.2861506]
[1744655741998,0.004,84852.0,84851.0,0.2861506]
[1744655742423,0.002,84852.0,84851.0,0.40699214]
[1744655742881,0.00862044,84884.0,84851.0,0.40699214]
[1744655742882,0.05537899,84888.0,84887.0,0.235607]
[1744655743097,0.05537899,84888.0,84885.0,0.247391]
[1744655743307,0.05583761,84888.0,84886.0,0.235608]
[1744655743516,0.00964241,84887.0,84886.0,0.235608]
[1744655743717,0.05583761,84888.0,84886.0,0.235608]
[1744655744095,0.00045862,84888.0,84886.0,0.235608]
[1744655744393,0.00045862,84888.0,84886.0,0.23796384]
[1744655744776,0.00245862,84888.0,84886.0,0.23796384]
[1744655745388,0.00345862,84888.0,84886.0,0.23796384]
[1744655745575,0.00245862,84888.0,84886.0,0.23796384]
[1744655745784,6.2e-07,84888.0,84887.0,0.12084154]
[1744655745984,6.2e-07,84888.0,84887.0,0.16964154]
[1744655746210,0.0004225,84901.0,84898.0,0.011778]
[1744655746403,0.00050351,84901.0,84899.0,0.35641554]
[1744655747173,0.00050351,84901.0,84899.0,0.235574]
[1744655747645,0.00050351,84901.0,84898.0,0.247352]
[1744655747646,0.00050351,84901.0,84898.0,0.011778]
[1744655747846,0.00981985,84900.0,84898.0,0.235576]
[1744655748047,0.00981985,84900.0,84899.0,0.001]
[1744655748395,0.00981985,84900.0,84899.0,0.236574]
[1744655748823,0.00981985,84900.0,84899.0,0.235574]
[1744655749023,0.25716885,84900.0,84897.0,0.011778]
[1744655749225,0.25716885,84900.0,84899.0,0.001]
[1744655750221,0.247373,84892.0,84888.0,0.247383]
[1744655750427,0.011779,84892.0,84889.0,0.01178]
[1744655750663,0.00978657,84891.0,84889.0,0.24738]
[1744655751024,0.00978657,84891.0,84889.0,0.247381]
[1744655751247,0.02156557,84891.0,84883.0,0.247396]
[1744655751407,0.011779,84890.0,84888.0,0.002]
[1744655751611,0.00978657,84891.0,84889.0,0.2386]
[1744655751831,0.235596,84891.0,84889.0,0.003]
[1744655752368,0.011779,84892.0,84889.0,0.003]
[1744655752369,0.235588,84894.0,84889.0,0.003]
[1744655752510,0.00978422,84890.0,84889.0,0.238601]
[1744655752719,0.011779,84893.0,84890.0,0.247375]
[1744655753077,0.25716092,84892.0,84889.0,0.003]
[1744655753431,0.25716092,84892.0,84889.0,0.002]
[1744655753635,0.02156792,84892.0,84889.0,0.002]
[1744655753851,0.235596,84891.0,84890.0,0.003]
[1744655754045,0.247375,84891.0,84885.0,0.01178]
[1744655754272,0.25716157,84891.0,84890.0,0.002]
[1744655754486,0.00978657,84891.0,84890.0,0.002]
[1744655754641,0.24538257,84891.0,84890.0,0.002]
[1744655755503,0.00978657,84891.0,84890.0,0.002]
[1744655756120,0.235599,84890.0,84888.0,0.01178]
[1744655756419,0.247362,84896.0,84891.0,0.247372]
[1744655756576,0.247367,84894.0,84891.0,0.247372]
[1744655756981,0.011779,84895.0,84892.0,0.247372]
[1744655757361,0.011779,84895.0,84893.0,0.23559]
[1744655758317,0.247364,84895.0,84892.0,0.247372]
[1744655758520,0.011779,84895.0,84893.0,0.23559]
[1744655758699,3.2e-07,84902.0,84900.0,0.235571]
[1744655759588,3.2e-07,84902.0,84898.0,0.011778]
[1744655759901,3.2e-07,84902.0,84899.0,0.235574]
[1744655760120,3.2e-07,84902.0,84893.0,0.247367]
[1744655760121,0.235576,84898.0,84894.0,0.235585]
[1744655760328,0.235576,84898.0,84895.0,0.235584]
[1744655760731,0.235576,84898.0,84896.0,0.235581]
[1744655761031,0.235576,84898.0,84895.0,0.247363]
[1744655761232,0.247354,84898.0,84894.0,0.247366]
[1744655761441,0.247372,84893.0,84888.0,0.01178]
[1744655761696,0.235607,84887.0,84883.0,0.01178]
[1744655761936,0.01178,84888.0,84885.0,0.24739]
[1744655762063,0.247374,84892.0,84888.0,0.235604]
[1744655762276,0.011779,84890.0,84886.0,0.235608]
[1744655762473,0.01178,84889.0,84887.0,0.235605]
[1744655762677,0.235598,84891.0,84888.0,0.235604]
[1744655763737,0.235598,84891.0,84886.0,0.248389]
[1744655763738,0.235601,84889.0,84886.0,0.248389]
[1744655763937,0.235601,84889.0,84886.0,0.247389]
[1744655764140,0.235601,84889.0,84888.0,0.001]
[1744655764454,0.247381,84889.0,84888.0,0.001]
[1744655764795,0.01178,84889.0,84886.0,0.01178]
[1744655765206,2.943364,84954.0,84865.0,0.462]
[1744655765207,0.20748811,84900.0,84865.0,0.462]
[1744655765413,0.011782,84875.0,84871.0,0.011782]
[1744655765611,0.01178,84884.0,84875.0,0.011782]
[1744655765910,0.00988088,84883.0,84882.0,0.235621]
[1744655766112,0.011778,84903.0,84898.0,0.011778]
[1744655766315,0.00992079,84900.0,84894.0,0.011779]
[1744655766514,0.235579,84898.0,84894.0,0.247361]
[1744655766868,0.247362,84896.0,84893.0,0.23559]
[1744655767017,0.247362,84896.0,84892.0,0.247372]
[1744655767205,0.247362,84896.0,84891.0,0.247375]
[1744655767206,0.24549606,84895.0,84891.0,0.247375]
[1744655767656,0.24549606,84895.0,84892.0,0.235592]
[1744655767894,0.25727506,84895.0,84892.0,0.247371]
[1744655768419,0.02168806,84895.0,84892.0,0.247371]
[1744655768704,0.00990906,84895.0,84894.0,0.235587]
[1744655769101,0.0001134,84900.0,84899.0,0.235574]
[1744655769463,0.03194611,84900.0,84899.0,0.235574]
[1744655769656,0.0220325,84900.0,84899.0,0.235574]
[1744655770642,0.0240325,84900.0,84899.0,0.235574]
[1744655770844,0.0004225,84901.0,84899.0,0.235574]
[1744655770845,5.7e-07,84901.0,84900.0,0.334471]
[1744655770979,5.7e-07,84901.0,84900.0,0.45531254]
[1744655771376,5.7e-07,84901.0,84900.0,0.79531254]
[1744655771692,5.7e-07,84901.0,84900.0,0.74601254]
[1744655772088,5.7e-07,84901.0,84900.0,0.41201254]
[1744655773078,5.7e-07,84901.0,84900.0,0.41501254]
[1744655774052,5.7e-07,84901.0,84900.0,0.244571]
[1744655774808,0.00874441,84901.0,84900.0,0.244571]
[1744655775006,0.00874441,84901.0,84900.0,0.241571]
[1744655775389,0.00874441,84901.0,84900.0,0.008]
[1744655775390,0.24431241,84901.0,84900.0,0.008]
[1744655776279,0.24431241,84901.0,84890.0,0.011779]
[1744655776280,0.235593,84892.0,84890.0,0.011779]
[1744655776617,0.235593,84892.0,84889.0,0.235601]
[1744655776618,0.00870154,84891.0,84889.0,0.235601]
[1744655776795,0.00870154,84891.0,84890.0,0.235599]
[1744655776958,0.247371,84893.0,84889.0,0.247381]
[1744655777157,0.00870389,84892.0,84889.0,0.247381]
[1744655777616,0.00870389,84892.0,84890.0,0.235597]
[1744655777791,0.00870389,84892.0,84889.0,0.01378]
[1744655777995,0.011779,84894.0,84890.0,0.011779]
[1744655778194,0.00870154,84891.0,84890.0,0.247376]
[1744655778374,0.011779,84893.0,84891.0,0.235596]
[1744655778580,0.00870389,84892.0,84891.0,0.247375]
[1744655778780,0.247368,84894.0,84891.0,0.247375]
[1744655778993,0.24429623,84893.0,84891.0,0.011779]
[1744655779819,0.235593,84892.0,84889.0,0.01178]
[1744655780073,0.24429689,84892.0,84891.0,0.001]
[1744655780779,0.24429689,84892.0,84891.0,0.003]
[1744655780947,0.24429689,84892.0,84891.0,0.001]
[1744655781531,0.235604,84888.0,84887.0,0.0001134]
[1744655781908,0.24429084,84888.0,84887.0,0.0001134]
[1744655783207,0.26629754,84888.0,84887.0,0.0001134]
[1744655783510,0.26629754,84888.0,84887.0,0.0011134]
[1744655783511,0.27730045,84888.0,84887.0,0.0011134]
[1744655786884,0.46198284,84888.0,84887.0,0.0011134]
[1744655787083,0.81072081,84888.0,84887.0,0.0011134]
[1744655787288,0.89183549,84888.0,84887.0,0.0011134]
[1744655787626,0.85882081,84888.0,84887.0,0.0011134]
[1744655788243,0.86382081,84888.0,84887.0,4e-07]
[1744655788444,0.89682271,84888.0,84887.0,4e-07]
[1744655788944,1.01565472,84888.0,84887.0,4e-07]
[1744655789139,0.235694,84856.0,84854.0,0.0126286]
[1744655789317,0.23580719,84856.0,84854.0,0.0126286]
[1744655789638,0.00855291,84855.0,84854.0,0.0126286]
[1744655789940,0.00855291,84855.0,84854.0,0.2483266]
[1744655790442,0.00855291,84855.0,84854.0,0.0008446]
[1744655790845,0.24424891,84855.0,84854.0,0.0018446]
[1744655791008,0.24424891,84855.0,84854.0,0.0038446]
[1744655791205,0.24424891,84855.0,84854.0,0.0028446]
[1744655791414,0.00855291,84855.0,84854.0,0.0028446]
[1744655791621,0.00855291,84855.0,84854.0,0.2395426]
[1744655792254,0.00855291,84855.0,84854.0,0.2375426]
[1744655792458,0.00855291,84855.0,84854.0,0.2395426]
[1744655793551,0.24424891,84855.0,84854.0,0.0038446]
[1744655794817,0.00855291,84855.0,84854.0,0.2395426]
[1744655795084,0.00855291,84855.0,84854.0,0.0038446]
[1744655795279,0.24424891,84855.0,84854.0,0.0038446]
[1744655797003,0.00855291,84855.0,84854.0,0.2395426]
[1744655797185,0.00011319,84856.0,84855.0,0.235696]
[1744655797364,0.00011319,84856.0,84855.0,0.35653754]
[1744655798585,0.00011319,84856.0,84855.0,0.35753754]
[1744655799133,0.00011319,84856.0,84855.0,0.35953754]
[1744655802437,0.00011319,84856.0,84855.0,0.69953754]
[1744655803240,0.00011319,84856.0,84855.0,0.69653754]
[1744655803726,0.00011319,84856.0,84855.0,0.70253754]
[1744655804206,0.00011319,84856.0,84855.0,0.70053754]
[1744655804419,0.00011319,84856.0,84855.0,0.70253754]
[1744655805511,0.00011319,84856.0,84855.0,0.74763754]
[1744655811602,1.9e-07,84856.0,84855.0,0.74763754]
[1744655811823,1.9e-07,84856.0,84855.0,0.76217839]
[1744655812425,1.9e-07,84856.0,84855.0,0.75817839]
[1744655812630,1.9e-07,84856.0,84855.0,0.76617839]
[1744655812831,1.9e-07,84856.0,84855.0,0.75617839]
[1744655813054,1.9e-07,84856.0,84855.0,0.76117839]
[1744655813249,1.9e-07,84856.0,84855.0,0.77017839]
[1744655813671,1.9e-07,84856.0,84855.0,0.76517839]
[1744655813824,1.9e-07,84856.0,84855.0,0.77017839]
[1744655814262,1.9e-07,84856.0,84855.0,0.75563754]
[1744655816314,1.9e-07,84856.0,84855.0,0.71053754]
[1744655816736,1.9e-07,84856.0,84855.0,0.37053754]
[1744655817076,1.9e-07,84856.0,84855.0,0.249696]
[1744655817276,1.9e-07,84856.0,84855.0,0.244696]
[1744655817667,1.9e-07,84856.0,84855.0,0.247696]
[1744655817870,0.011783,84861.0,84858.0,0.235686]
[1744655818249,0.02199932,84860.0,84858.0,0.23614462]
[1744655818441,0.02199932,84860.0,84858.0,0.00045862]
[1744655818442,0.235685,84859.0,84858.0,0.00045862]
[1744655818692,0.37271829,84859.0,84858.0,0.00045862]
[1744655818889,0.86722901,84859.0,84858.0,0.00045862]
[1744655819105,0.98807055,84859.0,84858.0,0.00045862]
[1744655819236,0.94507967,84859.0,84858.0,0.00045862]
[1744655819438,0.94507967,84859.0,84850.0,3e-07]
[1744655819439,0.351785,84853.0,84850.0,3e-07]
[1744655819683,0.35454085,84851.0,84850.0,3e-07]
[1744655819899,0.011787,84837.0,84834.0,0.0008446]
[1744655820097,0.282451,84835.0,84834.0,0.00095779]
[1744655820304,0.42529186,84835.0,84834.0,0.00095779]
[1744655820910,0.4362941,84835.0,84834.0,0.00095779]
[1744655821120,0.83643495,84835.0,84834.0,0.00095779]
[1744655822172,0.83743495,84835.0,84834.0,0.00095779]
[1744655822793,0.83643495,84835.0,84834.0,0.00095779]
[1744655822944,0.83843495,84835.0,84834.0,0.00095779]
[1744655823144,0.84736679,84835.0,84834.0,0.00095779]
[1744655823329,0.70305256,84835.0,84834.0,0.00095779]
[1744655823535,0.08170156,84835.0,84834.0,0.23671179]
[1744655823735,0.03500156,84835.0,84834.0,0.23671179]
[1744655823938,0.03500156,84835.0,84834.0,0.00095779]
[1744655824800,0.03500156,84835.0,84834.0,0.12179933]
[1744655825127,0.002,84835.0,84834.0,0.12415659]
[1744655825511,0.002,84835.0,84834.0,0.12179933]
[1744655825719,0.002,84835.0,84834.0,0.12415643]
[1744655825937,0.05539765,84852.0,84850.0,0.23571]
[1744655826131,0.05539765,84852.0,84851.0,0.12319823]
[1744655826286,0.01096071,84861.0,84848.0,0.247495]
[1744655826287,0.235702,84853.0,84848.0,0.011785]
[1744655826486,0.235718,84848.0,84840.0,0.011786]
[1744655826746,0.011785,84851.0,84847.0,0.247501]
[1744655827028,0.011785,84850.0,84847.0,0.011785]
[1744655827951,0.235702,84853.0,84847.0,0.011785]
[1744655828295,0.01096071,84854.0,84852.0,0.235703]
[1744655829134,0.011783,84863.0,84858.0,0.011784]
[1744655829396,0.01096071,84864.0,84860.0,0.247463]
[1744655829603,0.235675,84863.0,84860.0,0.011784]
[1744655829821,0.03287933,84864.0,84861.0,0.247462]
[1744655829990,0.03287933,84864.0,84862.0,0.235675]
[1744655830298,0.03287933,84864.0,84860.0,0.011784]
[1744655830299,0.001,84863.0,84860.0,0.011784]
[1744655830498,0.011783,84861.0,84858.0,0.011784]
[1744655830806,0.001,84863.0,84861.0,0.235677]
[1744655831427,0.002,84864.0,84862.0,0.235674]
[1744655831606,0.03370162,84865.0,84862.0,0.247457]
[1744655831807,0.002,84863.0,84862.0,0.247457]
[1744655832122,0.002,84863.0,84860.0,0.011784]
[1744655832123,0.235685,84859.0,84855.0,0.247478]
[1744655832405,0.247469,84859.0,84855.0,0.247478]
[1744655832617,0.011784,84860.0,84857.0,0.23569]
[1744655833004,0.235683,84860.0,84856.0,0.011784]
[1744655833209,0.247467,84860.0,84856.0,0.011784]
[1744655833945,0.235685,84859.0,84856.0,0.247476]
[1744655834153,0.255835,84859.0,84856.0,0.011784]
[1744655834356,0.235688,84858.0,84856.0,0.011784]
[1744655834706,0.001,84860.0,84858.0,0.235687]
[1744655834954,0.002,84860.0,84859.0,0.235685]
[1744655835123,0.001,84860.0,84859.0,0.235685]
[1744655835327,0.001,84860.0,84855.0,0.011784]
[1744655835328,0.011782,84873.0,84865.0,0.011783]
[1744655835503,0.247406,84881.0,84876.0,0.011781]
[1744655835708,0.247423,84875.0,84871.0,0.23565]
[1744655835904,0.235646,84873.0,84870.0,0.247436]
[1744655836370,0.235648,84872.0,84868.0,0.247443]
[1744655836582,0.247437,84870.0,84865.0,0.247449]
[1744655836726,0.011782,84869.0,84865.0,0.247449]
[1744655836935,0.247441,84869.0,84865.0,0.247449]
[1744655837243,0.011783,84866.0,84850.0,0.235709]
[1744655837488,0.00045827,84870.0,84855.0,0.011784]
[1744655837489,0.247469,84859.0,84855.0,0.011784]
[1744655837724,0.247474,84858.0,84855.0,0.011784]
[1744655837977,0.011785,84852.0,84841.0,0.14792]
[1744655838227,0.235715,84848.0,84845.0,0.235723]
[1744655838462,0.011785,84851.0,84848.0,0.011785]
[1744655838684,0.011784,84854.0,84849.0,0.247495]
[1744655838917,0.011784,84854.0,84848.0,0.2475]
[1744655838918,0.011785,84851.0,84848.0,0.2475]
[1744655839171,0.011785,84852.0,84848.0,0.2475]
[1744655839509,0.24749,84852.0,84848.0,0.2475]
[1744655839705,0.247489,84853.0,84849.0,0.011785]
[1744655839911,0.24749,84852.0,84849.0,0.235711]
[1744655840148,0.247489,84853.0,84850.0,0.247492]
[1744655840550,0.011785,84853.0,84850.0,0.011785]
[1744655840772,0.011784,84854.0,84850.0,0.011785]
[1744655841630,0.247482,84855.0,84851.0,0.235706]
[1744655841850,0.235699,84854.0,84850.0,0.011785]
[1744655842331,0.02193825,84856.0,84852.0,0.011785]
[1744655842569,0.02193825,84856.0,84855.0,0.235696]
[1744655842810,0.011783,84862.0,84856.0,0.011784]
[1744655842811,0.247466,84860.0,84856.0,0.011784]
[1744655843029,0.247469,84859.0,84857.0,0.23569]
[1744655843259,0.02193825,84859.0,84858.0,0.011784]
[1744655843967,0.01097396,84860.0,84858.0,0.011784]
[1744655843968,0.03291221,84860.0,84859.0,0.235685]
[1744655844246,2.1e-07,84860.0,84859.0,0.74798323]
[1744655844478,0.00045827,84870.0,84869.0,0.235657]
[1744655844681,0.00045827,84870.0,84869.0,0.23801328]
[1744655845054,0.00045827,84870.0,84869.0,0.35885482]
[1744655845261,0.00045827,84870.0,84869.0,0.35649854]
[1744655846210,2.7e-07,84870.0,84869.0,0.69649854]
[1744655846610,2.7e-07,84870.0,84869.0,1.10859854]
[1744655848096,2.7e-07,84870.0,84869.0,1.10959854]
[1744655848514,2.7e-07,84870.0,84869.0,1.11059854]
[1744655848895,2.7e-07,84870.0,84869.0,1.10959854]
[1744655849109,2.7e-07,84870.0,84869.0,1.10859854]
[1744655849305,2.7e-07,84870.0,84869.0,1.11159854]
[1744655849513,2.7e-07,84870.0,84869.0,1.11559854]
[1744655850597,2.7e-07,84870.0,84869.0,0.70349854]
[1744655850809,2.7e-07,84870.0,84869.0,0.84917854]
[1744655853197,2.7e-07,84870.0,84869.0,0.50917854]
[1744655856268,8.102e-05,84870.0,84869.0,0.50917854]
[1744655869012,8.102e-05,84870.0,84869.0,0.36349854]
[1744655870432,8.102e-05,84870.0,84869.0,0.007]
[1744655870867,0.00805606,84870.0,84869.0,0.242657]
[1744655871022,8.102e-05,84870.0,84869.0,0.239657]
[1744655871373,8.102e-05,84870.0,84869.0,0.241657]
[1744655871931,0.02208576,84870.0,84869.0,0.237657]
[1744655872272,0.0300608,84870.0,84869.0,0.237657]
[1744655872627,0.02208576,84870.0,84869.0,0.239657]
[1744655872832,0.0300608,84870.0,84869.0,0.239657]
[1744655873056,0.04107138,84870.0,84869.0,0.239657]
[1744655873279,0.04107138,84870.0,84869.0,0.004]
[1744655873478,0.27672538,84870.0,84869.0,0.004]
[1744655874263,0.27672538,84870.0,84869.0,0.002]
[1744655874626,0.27672538,84870.0,84869.0,0.004]
[1744655874834,0.04107138,84870.0,84869.0,0.239657]
[1744655875046,0.04107138,84870.0,84869.0,0.237657]
[1744655875249,0.03409634,84870.0,84869.0,0.237657]
[1744655875830,0.03409634,84870.0,84869.0,0.235657]
[1744655876440,0.03309634,84870.0,84869.0,0.235657]
[1744655878489,0.03309634,84870.0,84869.0,0.35649854]
[1744655878700,0.02208576,84870.0,84869.0,0.35649854]
[1744655879800,8.102e-05,84870.0,84869.0,0.35649854]
[1744655880745,0.02211221,84870.0,84869.0,0.35649854]
[1744655881957,8.102e-05,84870.0,84869.0,0.35649854]
[1744655882440,2e-08,84870.0,84869.0,0.69649854]
[1744655882958,2e-08,84870.0,84869.0,0.69749854]
[1744655883183,2e-08,84870.0,84869.0,0.70632372]
[1744655883419,2e-08,84870.0,84869.0,0.69649854]
[1744655883654,2e-08,84870.0,84869.0,0.69849854]
[1744655885108,2e-08,84870.0,84869.0,0.70149854]
[1744655885334,2e-08,84870.0,84869.0,0.84465854]
[1744655889988,2e-08,84870.0,84869.0,0.84402607]
[1744655895793,2e-08,84870.0,84869.0,0.50402607]
[1744655899620,2e-08,84870.0,84869.0,0.24002453]
[1744655899850,2e-08,84870.0,84869.0,0.005]
[1744655900106,0.02202958,84870.0,84869.0,0.240657]
[1744655900331,0.03003692,84870.0,84869.0,0.240657]
[1744655900556,0.03003692,84870.0,84869.0,0.238657]
[1744655900807,0.03003692,84870.0,84865.0,0.23566]
[1744655900808,0.04105208,84870.0,84865.0,0.23566]
[1744655901048,0.04105208,84870.0,84855.0,0.011784]
[1744655901049,0.011783,84868.0,84855.0,0.011784]
[1744655901305,0.011784,84854.0,84850.0,0.235709]
[1744655901563,0.011785,84850.0,84846.0,0.247506]
[1744655901814,0.02280016,84849.0,84845.0,0.247508]
[1744655902077,0.28846589,84849.0,84846.0,0.235721]
[1744655902292,0.28846589,84849.0,84846.0,0.247507]
[1744655902542,0.02202956,84848.0,84846.0,0.247507]
[1744655902794,0.02202956,84847.0,84846.0,0.249507]
[1744655903299,0.03304472,84847.0,84846.0,0.247507]
[1744655903552,0.03304472,84847.0,84846.0,0.248507]
[1744655903997,0.01101516,84847.0,84846.0,0.248507]
[1744655904236,0.01101516,84850.0,84849.0,0.235712]
[1744655904940,0.03300368,84850.0,84849.0,0.35891058]
[1744655905229,0.03300368,84850.0,84849.0,0.35655354]
[1744655905230,0.01101516,84850.0,84849.0,0.35655354]
[1744655905444,0.02198852,84861.0,84860.0,0.235682]
[1744655905647,0.01101516,84869.0,84868.0,0.23566]
[1744655905790,0.03299588,84869.0,84868.0,0.23566]
[1744655905991,0.04085074,84869.0,84868.0,0.23566]
[1744655907288,0.04085074,84869.0,84856.0,0.247476]
[1744655907289,0.011783,84864.0,84856.0,0.247476]
[1744655907499,0.247495,84850.0,84847.0,0.1432]
[1744655907628,0.285601,84853.0,84850.0,0.011785]
[1744655907985,0.02198072,84852.0,84850.0,0.011785]
[1744655908550,0.02198072,84851.0,84850.0,0.011785]
[1744655908760,0.0329685,84851.0,84850.0,0.011785]
[1744655908975,0.0329685,84851.0,84850.0,0.247494]
[1744655909624,0.0329685,84851.0,84850.0,0.012785]
[1744655909834,0.0329685,84851.0,84850.0,0.013785]
[1744655910043,0.0329685,84851.0,84850.0,0.012785]
[1744655910379,0.0329685,84851.0,84850.0,0.013785]
[1744655911139,0.0329685,84851.0,84850.0,0.248495]
[1744655911405,0.0329685,84851.0,84850.0,0.249495]
[1744655912082,0.0329685,84851.0,84850.0,0.002]
[1744655912083,0.50836061,84851.0,84850.0,0.002]
[1744655912331,0.47362926,84851.0,84850.0,0.002]
[1744655912599,0.81362926,84851.0,84850.0,0.002]
[1744655912856,0.45708072,84851.0,84850.0,0.002]
[1744655913110,0.69278772,84851.0,84850.0,0.002]
[1744655913352,0.81362926,84851.0,84850.0,0.001]
[1744655913822,0.81462926,84851.0,84850.0,0.001]
[1744655914011,0.235746,84837.0,84835.0,0.0122094]
[1744655914360,0.02198072,84836.0,84835.0,0.0122094]
[1744655914569,0.02198072,84836.0,84835.0,0.0004224]
[1744655915211,0.02198072,84836.0,84835.0,0.00088067]
[1744655916824,0.25872872,84836.0,84835.0,0.00088067]
[1744655917282,0.02298072,84836.0,84835.0,0.23663167]
[1744655917456,0.02298072,84836.0,84835.0,0.00088067]
[1744655917669,0.00869354,84836.0,84835.0,0.23663167]
[1744655918548,0.001,84836.0,84835.0,0.00088067]
[1744655918710,0.001,84836.0,84835.0,0.23663167]
[1744655918907,0.001,84836.0,84835.0,0.00088067]
[1744655919163,0.00869354,84836.0,84835.0,0.23663167]
[1744655919295,0.24444154,84836.0,84835.0,0.00088067]
[1744655919697,0.00869354,84836.0,84835.0,0.23663167]
[1744655920871,0.001,84836.0,84835.0,0.23663167]
[1744655921197,0.00869354,84836.0,84835.0,0.23663167]
[1744655923073,0.24444154,84836.0,84835.0,0.00088067]
[1744655923884,0.26642226,84836.0,84835.0,0.00088067]
[1744655924298,0.4841638,84836.0,84835.0,0.00088067]
[1744655924477,0.49513658,84836.0,84835.0,0.00088067]
[1744655925518,0.49413658,84836.0,84835.0,0.00088067]
[1744655925670,0.84867743,84836.0,84835.0,0.00088067]
[1744655925867,0.85067743,84836.0,84835.0,0.00088067]
[1744655926072,0.90972098,84836.0,84835.0,0.00088067]
[1744655926294,0.85067743,84836.0,84835.0,0.00088067]
[1744655926496,0.84967743,84836.0,84835.0,0.00088067]
[1744655926696,0.85849523,84836.0,84835.0,0.00088067]
[1744655926902,0.85949523,84836.0,84835.0,0.00088067]
[1744655927245,0.86049523,84836.0,84835.0,0.00088067]
[1744655928457,0.84595438,84836.0,84835.0,0.00088067]
[1744655928874,0.71629504,84836.0,84835.0,0.00088067]
[1744655929050,0.48054704,84836.0,84835.0,0.00088067]